fUST/lending_fUST_20250727
["ID","MTS","AMOUNT","RATE_DAILY","PERIOD"]
[375165713,1753567838005,-460.0,0.00019685,2]
[375165714,1753567838014,-460.0,0.00019685,2]
[375165715,1753567838023,-460.0,0.00019685,2]
[375165716,1753567838033,-460.0,0.00019685,2]
[375165717,1753567838048,-682.95,0.00019685,2]
[375165718,1753567838058,-460.0,0.00019685,2]
[375165719,1753567838067,-636.76,0.00019685,2]
[375165720,1753567838077,-460.0,0.00019685,2]
[375165721,1753567838087,-460.0,0.00019685,2]
[375165722,1753567838096,-460.0,0.00019685,2]
[375165723,1753567838106,-432.13990293,0.00019685,2]
[375165724,1753567838115,-614.01,0.00019685,2]
[375165725,1753567838124,-609.37,0.00019685,2]
[375165726,1753567838134,-827.28,0.00019685,2]
[375165727,1753567838143,-460.0,0.00019685,2]
[375165728,1753567838153,-460.0,0.00019685,2]
[375165729,1753567838162,-460.0,0.00019685,2]
[375165730,1753567838171,-13788.61224674,0.00019686,2]
[375165732,1753567840076,-738.6676937,0.00019686,2]
[375165807,1753567842961,-1330.36281741,0.00019686,2]
[375165810,1753567843021,-19760.33013752,0.00019686,2]
[375165811,1753567843030,-387.92241901,0.00019693,2]
[375165812,1753567843040,-460.0,0.00019693,2]
[375165813,1753567843050,-460.0,0.00019693,2]
[375165814,1753567843059,-460.0,0.00019693,2]
[375165815,1753567843069,-460.0,0.00019693,2]
[375165816,1753567843078,-460.0,0.00019693,2]
[375165817,1753567843088,-530.26,0.00019693,2]
[375165818,1753567843097,-460.0,0.00019693,2]
[375165819,1753567843107,-460.0,0.00019693,2]
[375165820,1753567843117,-460.0,0.00019693,2]
[375165821,1753567843127,-460.0,0.00019693,2]
[375165822,1753567843136,-460.0,0.00019693,2]
[375165823,1753567843146,-460.0,0.00019693,2]
[375165824,1753567843155,-460.0,0.00019693,2]
[375165825,1753567843164,-460.0,0.00019693,2]
[375165826,1753567843174,-460.0,0.00019693,2]
[375165827,1753567843184,-216.24105565,0.00019693,2]
[375165828,1753567843193,-522.51,0.00019693,2]
[375165829,1753567843203,-460.0,0.00019693,2]
[375165830,1753567843213,-460.0,0.00019693,2]
[375165831,1753567843222,-460.0,0.00019693,2]
[375165832,1753567843241,-506.73,0.00019693,2]
[375165833,1753567843252,-460.0,0.00019693,2]
[375165834,1753567843262,-460.0,0.00019693,2]
[375165835,1753567843272,-460.0,0.00019693,2]
[375165836,1753567843282,-460.0,0.00019693,2]
[375165837,1753567843292,-460.0,0.00019693,2]
[375165838,1753567843303,-460.0,0.00019693,2]
[375165839,1753567843313,-460.0,0.00019693,2]
[375165840,1753567843323,-460.0,0.00019693,2]
[375165841,1753567843334,-460.0,0.00019693,2]
[375165842,1753567843343,-460.0,0.00019693,2]
[375165843,1753567843353,-460.0,0.00019693,2]
[375165844,1753567843363,-500.0,0.00019693,2]
[375165845,1753567843374,-555.51243723,0.00019693,2]
[375165846,1753567843385,-500.0,0.00019693,2]
[375165847,1753567843395,-500.0,0.00019693,2]
[375165848,1753567843407,-500.0,0.00019693,2]
[375165849,1753567843417,-500.0,0.00019693,2]
[375165850,1753567843427,-178.93818986,0.00019693,2]
[375165851,1753567843438,-500.0,0.00019693,2]
[375165852,1753567843451,-500.0,0.00019693,2]
[375165853,1753567843463,-500.0,0.00019693,2]
[375165854,1753567843472,-512.66550763,0.00019693,2]
[375165855,1753567843483,-500.0,0.00019693,2]
[375165856,1753567843494,-500.0,0.00019693,2]
[375165857,1753567843504,-969.03675741,0.00019694,2]
[375165858,1753567843515,-460.0,0.00019694,2]
[375165859,1753567843526,-192.40003544,0.00019694,2]
[375165860,1753567843537,-460.0,0.00019694,2]
[375165861,1753567843547,-460.0,0.00019694,2]
[375165862,1753567843557,-460.0,0.00019694,2]
[375165863,1753567843568,-460.0,0.00019694,2]
[375165864,1753567843578,-460.0,0.00019694,2]
[375165865,1753567843588,-350.52576239,0.00019694,2]
[375165866,1753567843598,-460.0,0.00019694,2]
[375165867,1753567843608,-460.0,0.00019694,2]
[375165868,1753567843619,-460.0,0.00019694,2]
[375165869,1753567843630,-460.0,0.00019694,2]
[375165870,1753567843641,-460.0,0.00019694,2]
[375165871,1753567843652,-460.0,0.00019694,2]
[375165872,1753567843665,-460.0,0.00019694,2]
[375165873,1753567843675,-460.0,0.00019694,2]
[375165874,1753567843687,-460.0,0.00019694,2]
[375165875,1753567843698,-460.0,0.00019694,2]
[375165876,1753567843709,-460.0,0.00019694,2]
[375165877,1753567843719,-526.52660912,0.00019694,2]
[375165878,1753567843729,-500.0,0.00019694,2]
[375165879,1753567843739,-460.0,0.00019694,2]
[375165880,1753567843748,-460.0,0.00019694,2]
[375165881,1753567843758,-460.0,0.00019694,2]
[375165882,1753567843768,-460.0,0.00019695,2]
[375165883,1753567843777,-460.0,0.00019695,2]
[375165884,1753567843787,-56.05915315,0.00019695,2]
[375165885,1753567843801,-436.06167608,0.00019695,2]
[375165886,1753567843811,-460.0,0.00019695,2]
[375165887,1753567843821,-460.0,0.00019695,2]
[375165888,1753567843831,-460.0,0.00019695,2]
[375165889,1753567843840,-460.0,0.00019695,2]
[375165890,1753567843850,-460.0,0.00019695,2]
[375165891,1753567843864,-460.0,0.00019695,2]
[375165892,1753567843874,-460.0,0.00019695,2]
[375165893,1753567843884,-460.0,0.00019695,2]
[375165894,1753567843894,-460.0,0.00019695,2]
[375165895,1753567843904,-460.0,0.00019695,2]
[375165896,1753567843914,-460.0,0.00019695,2]
[375165897,1753567843924,-460.0,0.00019695,2]
[375165898,1753567843934,-460.0,0.00019695,2]
[375165899,1753567843944,-460.0,0.00019695,2]
[375165900,1753567843953,-460.0,0.00019695,2]
[375165901,1753567843963,-460.0,0.00019695,2]
[375165902,1753567843972,-460.0,0.00019695,2]
[375165903,1753567843982,-460.0,0.00019696,2]
[375165904,1753567843993,-2438.78,0.00019696,2]
[375165905,1753567844003,-460.0,0.00019696,2]
[375165906,1753567844014,-609.96,0.00019696,2]
[375165907,1753567844024,-460.0,0.00019696,2]
[375165908,1753567844033,-643.16,0.00019696,2]
[375165909,1753567844042,-460.0,0.00019696,2]
[375165910,1753567844051,-460.0,0.00019786,2]
[375165911,1753567844061,-460.0,0.00019786,2]
[375165912,1753567844071,-460.0,0.00019786,2]
[375165913,1753567844080,-460.0,0.00019786,2]
[375165914,1753567844090,-460.0,0.00019786,2]
[375165915,1753567844100,-460.0,0.00019786,2]
[375165916,1753567844110,-460.0,0.00019786,2]
[375165917,1753567844119,-453.40718438,0.00019786,2]
[375165918,1753567844130,-460.0,0.00019786,2]
[375165919,1753567844140,-460.0,0.00019786,2]
[375165920,1753567844149,-463.45,0.00019786,2]
[375165921,1753567844164,-781.22,0.00019786,2]
[375165922,1753567844174,-460.0,0.00019786,2]
[375165923,1753567844184,-1196.30715908,0.000199,2]
[375165924,1753567844194,-967.29,0.00019958,2]
[375165925,1753567844205,-460.0,0.00019958,2]
[375165926,1753567844215,-1017.0,0.00019958,2]
[375165927,1753567844225,-460.0,0.00019958,2]
[375165928,1753567844235,-489.4,0.00019958,2]
[375165929,1753567844245,-460.0,0.00019958,2]
[375165930,1753567844255,-460.0,0.00019958,2]
[375165931,1753567844265,-328.84,0.00019958,2]
[375165932,1753567844274,-839.6,0.00019958,2]
[375165933,1753567844284,-344.41,0.00019958,2]
[375165934,1753567844294,-460.0,0.00019958,2]
[375165935,1753567844303,-460.0,0.00019958,2]
[375165936,1753567844316,-460.0,0.00019958,2]
[375165937,1753567844332,-460.0,0.00019959,2]
[375165938,1753567844344,-460.0,0.00019959,2]
[375165939,1753567844355,-460.0,0.00019959,2]
[375165940,1753567844366,-2413.39,0.00019959,2]
[375165941,1753567844378,-460.0,0.00019959,2]
[375165942,1753567844389,-460.0,0.00019959,2]
[375165943,1753567844401,-460.0,0.00019959,2]
[375165944,1753567844411,-460.0,0.00019959,2]
[375165945,1753567844421,-460.0,0.00019959,2]
[375165946,1753567844431,-460.0,0.00019959,2]
[375165947,1753567844441,-682.95,0.00019959,2]
[375165948,1753567844452,-460.0,0.00019959,2]
[375165949,1753567844463,-636.76,0.00019959,2]
[375165950,1753567844474,-460.0,0.00019959,2]
[375165951,1753567844607,-561.99,0.00019959,2]
[375165952,1753567844619,-614.01,0.00019959,2]
[375165953,1753567844629,-827.28,0.00019959,2]
[375165954,1753567844638,-460.0,0.00019959,2]
[375165955,1753567844649,-460.0,0.00019959,2]
[375165956,1753567844661,-460.0,0.00019959,2]
[375165957,1753567844671,-460.0,0.00019967,2]
[375165958,1753567844680,-460.0,0.00019967,2]
[375165959,1753567844690,-460.0,0.00019967,2]
[375165960,1753567844700,-460.0,0.00019967,2]
[375165961,1753567844712,-522.51,0.00019967,2]
[375165962,1753567844721,-460.0,0.00019967,2]
[375165963,1753567844731,-460.0,0.00019967,2]
[375165964,1753567844742,-460.0,0.00019967,2]
[375165965,1753567844752,-506.73,0.00019967,2]
[375165966,1753567844762,-460.0,0.00019967,2]
[375165967,1753567844771,-460.0,0.00019967,2]
[375165968,1753567844780,-460.0,0.00019967,2]
[375165969,1753567844790,-460.0,0.00019967,2]
[375165970,1753567844800,-460.0,0.00019967,2]
[375165971,1753567844809,-460.0,0.00019968,2]
[375165972,1753567844818,-460.0,0.00019968,2]
[375165973,1753567844829,-575.58999031,0.00019968,2]
[375165974,1753567844838,-460.0,0.00019968,2]
[375165975,1753567844848,-460.0,0.00019968,2]
[375165976,1753567844857,-460.0,0.00019968,2]
[375165977,1753567844867,-460.0,0.00019968,2]
[375165978,1753567844876,-460.0,0.00019968,2]
[375165979,1753567844886,-460.0,0.00019968,2]
[375165980,1753567844895,-460.0,0.00019968,2]
[375165981,1753567844905,-328.37119653,0.00019968,2]
[375165982,1753567844915,-460.0,0.00019968,2]
[375165983,1753567844924,-460.0,0.00019968,2]
[375165984,1753567844933,-460.0,0.00019968,2]
[375165985,1753567844943,-460.0,0.00019968,2]
[375165986,1753567844952,-460.0,0.00019968,2]
[375165987,1753567844962,-460.0,0.00019968,2]
[375165988,1753567844971,-460.0,0.00019968,2]
[375165989,1753567844980,-460.0,0.00019968,2]
[375165990,1753567844990,-203.88558554,0.00019969,2]
[375165991,1753567845000,-151.0,0.00019969,2]
[375165992,1753567845009,-460.0,0.00019969,2]
[375165993,1753567845019,-488.92,0.00019969,2]
[375165994,1753567845029,-524.26,0.00019969,2]
[375165995,1753567845039,-460.0,0.00019969,2]
[375165996,1753567845049,-483.25088908,0.00019969,2]
[375165997,1753567845058,-460.0,0.00019969,2]
[375165998,1753567845067,-460.0,0.00019969,2]
[375165999,1753567845076,-151.0,0.0001997,2]
[375166000,1753567845086,-460.0,0.0001997,2]
[375166001,1753567845095,-2438.78,0.0001997,2]
[375166002,1753567845104,-460.0,0.0001997,2]
[375166003,1753567845114,-609.96,0.0001997,2]
[375166004,1753567845123,-460.0,0.0001997,2]
[375166005,1753567845133,-153.0,0.0002,2]
[375166006,1753567845142,-153.0,0.0002,2]
[375166007,1753567845152,-151.330413,0.00020035,8]
[375166008,1753567845161,-460.0,0.0002006,2]
[375166009,1753567845170,-460.0,0.0002006,2]
[375166010,1753567845180,-460.0,0.0002006,2]
[375166011,1753567845189,-460.0,0.0002006,2]
[375166012,1753567845199,-460.0,0.0002006,2]
[375166013,1753567845209,-463.45,0.0002006,2]
[375166014,1753567845218,-781.22,0.0002006,2]
[375166015,1753567845227,-460.0,0.0002006,2]
[375166016,1753567845237,-1196.30715902,0.00020107,2]
[375166017,1753567845246,-500.0,0.0002012,2]
[375166018,1753567845256,-405.88883561,0.00020133,2]
[375166019,1753567845265,-150.0,0.00020135,2]
[375166020,1753567845275,-153.0,0.00020137,2]
[375166021,1753567845284,-307.2601571,0.00020137,2]
[375166022,1753567845293,-151.0,0.00020137,2]
[375166023,1753567845303,-189.720871,0.00020187,2]
[375166024,1753567845313,-500.0,0.00020221,2]
[375166025,1753567845322,-967.29,0.00020232,2]
[375166026,1753567845332,-460.0,0.00020232,2]
[375166027,1753567845343,-1017.0,0.00020232,2]
[375166028,1753567845352,-460.0,0.00020232,2]
[375166029,1753567845362,-489.4,0.00020232,2]
[375166030,1753567845371,-310.37,0.00020232,2]
[375166031,1753567845381,-460.0,0.00020232,2]
[375166032,1753567845392,-839.6,0.00020232,2]
[375166033,1753567845401,-460.0,0.00020232,2]
[375166034,1753567845410,-460.0,0.00020232,2]
[375166035,1753567845420,-460.0,0.00020232,2]
[375166036,1753567845429,-151.0,0.00020233,2]
[375166037,1753567845440,-151.0,0.00020233,2]
[375166038,1753567845450,-460.0,0.00020233,2]
[375166039,1753567845459,-151.0,0.00020233,2]
[375166040,1753567845469,-460.0,0.00020233,2]
[375166041,1753567845478,-151.0,0.00020233,2]
[375166042,1753567845488,-2413.39,0.00020233,2]
[375166043,1753567845497,-460.0,0.00020233,2]
[375166044,1753567845507,-460.0,0.00020233,2]
[375166045,1753567845518,-283.48,0.00020233,2]
[375166046,1753567845528,-460.0,0.00020233,2]
[375166047,1753567845538,-682.95,0.00020233,2]
[375166048,1753567845548,-460.0,0.00020233,2]
[375166049,1753567845557,-460.0,0.00020233,2]
[375166050,1753567845567,-636.76,0.00020233,2]
[375166051,1753567845576,-460.0,0.00020233,2]
[375166052,1753567845586,-285.41187409,0.00020233,2]
[375166054,1753567846057,-1278.20333106,0.00019959,2]
[375166055,1753567846081,-11690.0,0.00019959,2]
[375166056,1753567846139,-4230.23147854,0.00019959,2]
[375166057,1753567846198,-410.30659363,0.00019959,2]
[375166058,1753567846210,-7003.17261567,0.00019959,2]
[375166059,1753567846220,-328.59812591,0.00020233,2]
[375166060,1753567846229,-827.28,0.00020233,2]
[375166061,1753567846238,-460.0,0.00020233,2]
[375166062,1753567846248,-460.0,0.00020233,2]
[375166063,1753567846257,-399.3,0.00020233,2]
[375166064,1753567846266,-460.0,0.00020241,2]
[375166065,1753567846276,-460.0,0.00020241,2]
[375166066,1753567846285,-460.0,0.00020241,2]
[375166067,1753567846294,-460.0,0.00020241,2]
[375166068,1753567846303,-522.51,0.00020241,2]
[375166069,1753567846313,-330.42280934,0.00020241,2]
[375166076,1753568079189,5000.0,0.00019178,2]
[375166077,1753568080413,176.51416251,0.00019486,2]
[375166078,1753568100474,150.0,0.000189,2]
[375166079,1753568103152,162.11168803,0.00018973,2]
[375166080,1753568260056,313.56423756,0.00019485,2]
[375166081,1753568401678,150.0,0.000189,2]
[375166082,1753568402440,170.748783,0.00013699,2]
[375166084,1753568528019,1531.4650646,0.00018734,2]
[375166085,1753568545897,382.21631512,0.00019485,2]
[375166088,1753568830081,-703.05012923,0.00019572,2]
[375166090,1753568883704,334.43927573,0.00019482,2]
[375166092,1753568912755,168.0,0.0001926,2]
[375166160,1753569032268,-372.98694398,0.00019562,2]
[375166161,1753569032278,-300.0,0.00019571,2]
[375166162,1753569032287,-300.0,0.00019571,2]
[375166163,1753569032297,-112.55346368,0.00019571,2]
[375166164,1753569032308,-187.44653632,0.00019571,2]
[375166165,1753569032318,-300.0,0.00019571,2]
[375166166,1753569032327,-1200.0,0.00019571,2]
[375166167,1753569032337,-496.94987077,0.00019572,2]
[375166168,1753569032350,-460.0,0.00019572,2]
[375166169,1753569032360,-460.0,0.00019572,2]
[375166170,1753569032369,-460.0,0.00019572,2]
[375166171,1753569032378,-460.0,0.00019572,2]
[375166172,1753569032387,-1141.22,0.00019572,2]
[375166173,1753569032397,-460.0,0.00019572,2]
[375166174,1753569032406,-460.0,0.00019572,2]
[375166175,1753569032416,-46489.27671742,0.00019572,2]
[375166176,1753569032427,-151.0,0.00019574,2]
[375166177,1753569032437,-23663.63177816,0.00019574,2]
[375166178,1753569032449,-1336.36822184,0.00019574,2]
[375166179,1753569032458,-582.60556101,0.00019574,2]
[375166180,1753569032571,-3219.03643899,0.00019574,2]
[375166181,1753569032581,-245.4103681,0.00019582,2]
[375166219,1753569038103,-171.39580695,0.00019581,2]
[375166222,1753569038114,-122.60419105,0.00019581,2]
[375166224,1753569038126,-377.39580895,0.00019581,2]
[375166226,1753569038136,-500.0,0.00019581,2]
[375166228,1753569038146,-500.0,0.00019581,2]
[375166230,1753569038156,-500.0,0.00019581,2]
[375166232,1753569038166,-500.0,0.00019581,2]
[375166234,1753569038175,-387.7902936,0.00019581,2]
[375166236,1753569038190,-112.2097064,0.00019581,2]
[375166238,1753569038199,-500.0,0.00019581,2]
[375166240,1753569038208,-500.0,0.00019581,2]
[375166242,1753569038217,-648.92143396,0.00019581,2]
[375166243,1753569038227,-500.0,0.00019581,2]
[375166244,1753569038236,-222.93906886,0.00019581,2]
[375166246,1753569038246,-500.0,0.00019581,2]
[375166247,1753569038255,-173.35522118,0.00019581,2]
[375166248,1753569038267,-326.64477882,0.00019581,2]
[375166249,1753569038277,-500.0,0.00019581,2]
[375166250,1753569038287,-500.0,0.00019581,2]
[375166251,1753569038296,-500.0,0.00019581,2]
[375166252,1753569038306,-500.0,0.00019581,2]
[375166253,1753569038316,-500.0,0.00019581,2]
[375166254,1753569038326,-500.0,0.00019581,2]
[375166255,1753569038335,-500.0,0.00019581,2]
[375166256,1753569038348,-500.0,0.00019581,2]
[375166257,1753569038357,-500.0,0.00019581,2]
[375166258,1753569038368,-500.0,0.00019581,2]
[375166259,1753569038377,-500.0,0.00019581,2]
[375166260,1753569038387,-500.0,0.00019581,2]
[375166261,1753569038396,-500.0,0.00019581,2]
[375166262,1753569038406,-500.0,0.00019581,2]
[375166263,1753569038415,-500.0,0.00019581,2]
[375166264,1753569038424,-500.0,0.00019581,2]
[375166265,1753569038436,-500.0,0.00019581,2]
[375166266,1753569038446,-500.0,0.00019581,2]
[375166267,1753569038458,-500.0,0.00019581,2]
[375166268,1753569038468,-500.0,0.00019581,2]
[375166269,1753569038592,-500.0,0.00019581,2]
[375166270,1753569038606,-399.75457998,0.00019581,2]
[375166271,1753569038615,-500.0,0.00019581,2]
[375166272,1753569038625,-460.0,0.00019583,2]
[375166273,1753569038634,-460.0,0.00019583,2]
[375166274,1753569038643,-1423.27,0.00019583,2]
[375166275,1753569038653,-460.0,0.00019583,2]
[375166276,1753569038662,-460.0,0.00019583,2]
[375166277,1753569038672,-460.0,0.00019583,2]
[375166278,1753569038682,-1123.8,0.00019583,2]
[375166279,1753569038691,-460.0,0.00019583,2]
[375166280,1753569038701,-460.0,0.00019583,2]
[375166281,1753569038710,-776.95,0.00019583,2]
[375166282,1753569038720,-460.0,0.00019583,2]
[375166283,1753569038729,-460.0,0.00019583,2]
[375166284,1753569038739,-472.55704682,0.00019584,2]
[375166285,1753569038748,-460.0,0.00019584,2]
[375166286,1753569038757,-460.0,0.00019584,2]
[375166287,1753569038767,-460.0,0.00019584,2]
[375166288,1753569038777,-565.83399209,0.00019584,2]
[375166289,1753569038787,-460.0,0.00019584,2]
[375166290,1753569038796,-460.0,0.00019584,2]
[375166291,1753569038806,-460.0,0.00019584,2]
[375166292,1753569038815,-460.0,0.00019584,2]
[375166293,1753569038825,-460.0,0.00019584,2]
[375166294,1753569038837,-481.54,0.00019584,2]
[375166295,1753569038847,-607.42402415,0.00019584,2]
[375166296,1753569038857,-460.0,0.00019584,2]
[375166297,1753569038868,-460.0,0.00019584,2]
[375166298,1753569038878,-460.0,0.00019584,2]
[375166299,1753569038888,-460.0,0.00019584,2]
[375166300,1753569038897,-460.0,0.00019584,2]
[375166301,1753569038907,-515.32,0.00019584,2]
[375166302,1753569038917,-460.0,0.00019584,2]
[375166303,1753569038926,-460.0,0.00019584,2]
[375166304,1753569038940,-460.0,0.00019584,2]
[375166305,1753569038950,-460.0,0.00019584,2]
[375166306,1753569038960,-460.0,0.00019584,2]
[375166307,1753569038969,-598.76,0.00019584,2]
[375166308,1753569038979,-460.0,0.00019584,2]
[375166309,1753569038991,-497.18,0.00019584,2]
[375166310,1753569039001,-460.0,0.00019584,2]
[375166311,1753569039011,-460.0,0.00019584,2]
[375166312,1753569039021,-460.0,0.00019584,2]
[375166313,1753569039030,-460.0,0.00019584,2]
[375166314,1753569039040,-460.0,0.00019584,2]
[375166315,1753569039049,-460.0,0.00019584,2]
[375166316,1753569039059,-460.0,0.00019584,2]
[375166317,1753569039068,-460.0,0.00019584,2]
[375166318,1753569039078,-1117.04,0.00019584,2]
[375166319,1753569039088,-460.0,0.00019584,2]
[375166320,1753569039097,-460.0,0.00019584,2]
[375166321,1753569039107,-460.0,0.00019584,2]
[375166322,1753569039116,-470.42,0.00019584,2]
[375166323,1753569039126,-460.0,0.00019584,2]
[375166324,1753569039136,-3269.84,0.00019584,2]
[375166325,1753569039146,-460.0,0.00019584,2]
[375166326,1753569039156,-460.0,0.00019584,2]
[375166327,1753569039166,-460.0,0.00019584,2]
[375166328,1753569039176,-463.11950371,0.00019584,2]
[375166329,1753569039187,-460.0,0.00019584,2]
[375166330,1753569039198,-460.0,0.00019584,2]
[375166331,1753569039207,-460.0,0.00019584,2]
[375166332,1753569039218,-460.0,0.00019584,2]
[375166333,1753569039228,-460.0,0.00019584,2]
[375166334,1753569039238,-460.0,0.00019584,2]
[375166335,1753569039247,-481.47,0.00019584,2]
[375166336,1753569039257,-460.0,0.00019584,2]
[375166337,1753569039267,-500.0,0.00019585,2]
[375166338,1753569039276,-460.0,0.00019585,2]
[375166339,1753569039285,-460.0,0.00019585,2]
[375166340,1753569039295,-460.0,0.00019585,2]
[375166341,1753569039305,-496.19713642,0.00019585,2]
[375166342,1753569039315,-460.0,0.00019585,2]
[375166343,1753569039326,-460.0,0.00019585,2]
[375166344,1753569039336,-573.35,0.00019585,2]
[375166345,1753569039350,-460.0,0.00019585,2]
[375166346,1753569039359,-460.0,0.00019585,2]
[375166347,1753569039369,-460.0,0.00019585,2]
[375166348,1753569039379,-587.90039459,0.00019585,2]
[375166349,1753569039390,-460.0,0.00019585,2]
[375166350,1753569039404,-460.0,0.00019585,2]
[375166351,1753569039414,-460.0,0.00019585,2]
[375166352,1753569039428,-891.69,0.00019585,2]
[375166353,1753569039439,-460.0,0.00019585,2]
[375166354,1753569039450,-161.51145883,0.00019585,2]
[375166362,1753569040274,-460.0,0.00019572,2]
[375166363,1753569040284,-298.48854117,0.00019585,2]
[375166364,1753569040294,-460.0,0.00019585,2]
[375166365,1753569040304,-460.0,0.00019585,2]
[375166366,1753569040314,-460.0,0.00019585,2]
[375166367,1753569040323,-460.0,0.00019585,2]
[375166368,1753569040333,-460.0,0.00019585,2]
[375166369,1753569040346,-933.98,0.00019585,2]
[375166370,1753569040356,-460.0,0.00019585,2]
[375166371,1753569040365,-460.0,0.00019585,2]
[375166372,1753569040375,-160.0,0.00019585,2]
[375166373,1753569040384,-30000.0,0.00019586,2]
[375166374,1753569040393,-288.14,0.00019662,3]
[375166375,1753569040402,-864.47,0.00019662,3]
[375166376,1753569040412,-1152.57,0.00019663,3]
[375166377,1753569040421,-576.29,0.00019663,3]
[375166378,1753569040433,-225.08456515,0.00019673,2]
[375166379,1753569040443,-503.55156825,0.00019673,2]
[375166380,1753569040452,-500.0,0.00019673,2]
[375166381,1753569040461,-500.0,0.00019673,2]
[375166382,1753569040471,-500.0,0.00019673,2]
[375166383,1753569040480,-500.0,0.00019673,2]
[375166384,1753569040490,-500.0,0.00019673,2]
[375166385,1753569040499,-501.11210329,0.00019673,2]
[375166386,1753569040509,-500.0,0.00019673,2]
[375166387,1753569040518,-458.72920056,0.00019673,2]
[375166388,1753569040528,-500.0,0.00019673,2]
[375166389,1753569040538,-468.70950984,0.00019673,2]
[375166390,1753569040547,-460.0,0.00019683,2]
[375166391,1753569040557,-578.97,0.00019683,2]
[375166392,1753569040567,-509.47704702,0.00019683,2]
[375166393,1753569040576,-460.0,0.00019683,2]
[375166394,1753569040586,-460.0,0.00019683,2]
[375166395,1753569040596,-460.0,0.00019683,2]
[375166396,1753569040606,-460.0,0.00019683,2]
[375166397,1753569040615,-460.0,0.00019683,2]
[375166398,1753569040625,-502.7,0.00019683,2]
[375166399,1753569040635,-460.0,0.00019683,2]
[375166400,1753569040645,-460.0,0.00019683,2]
[375166401,1753569040655,-460.0,0.00019683,2]
[375166402,1753569040664,-460.0,0.00019683,2]
[375166403,1753569040674,-460.0,0.00019683,2]
[375166404,1753569040686,-460.0,0.00019683,2]
[375166405,1753569040696,-460.0,0.00019683,2]
[375166406,1753569040705,-460.0,0.00019683,2]
[375166407,1753569040715,-549.61,0.00019683,2]
[375166408,1753569040724,-460.0,0.00019683,2]
[375166409,1753569040734,-460.0,0.00019683,2]
[375166410,1753569040743,-460.0,0.00019683,2]
[375166411,1753569040753,-460.0,0.00019683,2]
[375166412,1753569040762,-460.0,0.00019683,2]
[375166413,1753569040771,-460.0,0.00019683,2]
[375166414,1753569040781,-460.0,0.00019683,2]
[375166415,1753569040790,-546.47,0.00019683,2]
[375166416,1753569040800,-460.0,0.00019683,2]
[375166417,1753569040809,-535.76689433,0.00019683,2]
[375166418,1753569040819,-460.0,0.00019683,2]
[375166419,1753569040828,-460.0,0.00019683,2]
[375166420,1753569040838,-410.80514934,0.00019683,2]
[375166421,1753569040848,-460.0,0.00019683,2]
[375166422,1753569040858,-460.0,0.00019683,2]
[375166423,1753569040867,-460.0,0.00019683,2]
[375166424,1753569040876,-460.0,0.00019684,2]
[375166425,1753569040886,-460.0,0.00019684,2]